bitfinex/quotes_BTCUSD_20241116
["timestamp","ask_amount","ask_price","bid_price","bid_amount"]
[1731737711735,0.00114552,91249.0,91248.0,0.44601793]
[1731737711989,0.00114552,91249.0,91248.0,0.46901793]
[1731737711990,5.2e-07,91249.0,91248.0,0.46901793]
[1731737712208,5.2e-07,91249.0,91248.0,0.65252477]
[1731737713224,0.0017146,91266.0,91265.0,0.5653137]
[1731737713463,0.0017146,91266.0,91265.0,0.72107625]
[1731737713680,0.16471661,91278.0,91265.0,0.61150525]
[1731737713907,0.16471661,91278.0,91273.0,0.2341037]
[1731737714826,0.0017156,91284.0,91273.0,0.2341037]
[1731737715981,0.0017156,91284.0,91273.0,0.27003676]
[1731737718808,0.0017156,91284.0,91273.0,0.46029931]
[1731737721321,0.0017156,91284.0,91273.0,0.27003676]
[1731737725667,0.005,91283.0,91273.0,0.14549406]
[1731737725875,0.1438036,91274.0,91273.0,0.14549406]
[1731737726082,0.0017146,91274.0,91273.0,0.14549406]
[1731737726291,0.01326952,91274.0,91273.0,0.14549406]
[1731737726496,0.0017146,91274.0,91273.0,0.14549406]
[1731737727533,0.0017146,91274.0,91273.0,0.14635116]
[1731737728588,0.02041138,91274.0,91273.0,0.14635116]
[1731737729066,0.0017146,91274.0,91273.0,0.14635116]
[1731737733103,0.0017146,91274.0,91273.0,0.19013916]
[1731737734884,0.0017146,91274.0,91273.0,0.1245427]
[1731737735111,0.0017146,91274.0,91273.0,0.2341037]
[1731737735565,0.0017146,91274.0,91273.0,0.2384827]
[1731737739528,0.0017156,91284.0,91283.0,0.109549]
[1731737739755,0.0017156,91284.0,91283.0,0.6842344]
[1731737740860,0.0017156,91284.0,91283.0,0.5596917]
[1731737742888,0.0017156,91284.0,91283.0,0.359549]
[1731737743105,0.0017156,91284.0,91283.0,0.4840917]
[1731737743531,0.0017156,91284.0,91283.0,0.50618264]
[1731737744416,0.0017156,91284.0,91283.0,0.25618264]
[1731737746850,0.0017156,91284.0,91283.0,0.55016481]
[1731737747059,0.0017156,91284.0,91283.0,0.62746481]
[1731737747309,0.0017156,91284.0,91283.0,0.66000362]
[1731737748849,6e-07,91284.0,91283.0,0.89360887]
[1731737749709,6e-07,91284.0,91283.0,0.99162864]
[1731737750372,6e-07,91284.0,91283.0,0.89360887]
[1731737750588,6e-07,91284.0,91283.0,1.04065195]
[1731737751028,6e-07,91284.0,91283.0,0.89360887]
[1731737751271,0.14251197,91304.0,91294.0,0.25]
[1731737751487,0.14251197,91304.0,91303.0,0.2340677]
[1731737751976,0.24161661,91314.0,91309.0,0.109518]
[1731737752658,0.0769,91314.0,91309.0,0.109518]
[1731737752870,0.0608787,91310.0,91309.0,0.109518]
[1731737753931,0.0121787,91310.0,91309.0,0.109518]
[1731737754149,0.0017154,91310.0,91309.0,0.15475144]
[1731737755741,0.0017154,91310.0,91309.0,0.17641675]
[1731737759490,0.0017154,91310.0,91309.0,0.55095945]
[1731737759944,0.0017154,91310.0,91309.0,0.660022]
[1731737760214,0.0017154,91310.0,91309.0,0.5354793]
[1731737760457,0.0017154,91310.0,91309.0,0.660022]
[1731737760672,0.0017154,91310.0,91309.0,0.72380463]
[1731737761116,0.0017154,91310.0,91309.0,0.75062178]
[1731737761582,0.0017148,91322.0,91311.0,0.2340577]
[1731737761794,0.0017148,91322.0,91311.0,0.37442467]
[1731737762036,0.0017148,91322.0,91311.0,0.62979771]
[1731737762278,0.0017148,91322.0,91311.0,0.60298056]
[1731737762484,0.0017148,91322.0,91311.0,0.40690288]
[1731737762758,0.0017148,91322.0,91311.0,0.60298056]
[1731737762979,0.0017148,91322.0,91311.0,0.55712003]
[1731737762980,4e-07,91312.0,91311.0,0.55712003]
[1731737763418,4e-07,91312.0,91311.0,0.7530661]
[1731737763628,0.0017148,91322.0,91311.0,0.7530661]
[1731737763629,0.0017148,91322.0,91321.0,0.359503]
[1731737763859,0.0017148,91322.0,91321.0,0.46856555]
[1731737764146,0.0017148,91322.0,91321.0,0.49986997]
[1731737765452,0.0017148,91322.0,91321.0,0.57766997]
[1731737765709,0.24641661,91345.0,91321.0,0.57766997]
[1731737765710,0.0468,91349.0,91331.0,0.359491]
[1731737765915,0.16471661,91334.0,91331.0,0.71763895]
[1731737766142,0.16471661,91344.0,91343.0,0.109477]
[1731737766352,0.16471661,91344.0,91343.0,0.2340197]
[1731737766567,0.0468,91357.0,91354.0,0.109464]
[1731737766785,0.002,91368.0,91354.0,0.2340067]
[1731737766786,0.0538,91368.0,91354.0,0.2340067]
[1731737767001,0.1255,91368.0,91362.0,0.218908]
[1731737767255,0.16471661,91364.0,91363.0,0.109453]
[1731737767475,0.005,91367.0,91365.0,0.109451]
[1731737767683,0.1255,91368.0,91365.0,0.109451]
[1731737768336,0.0247144,91366.0,91365.0,0.109451]
[1731737768555,0.0247144,91366.0,91365.0,0.14075542]
[1731737769010,0.0247144,91366.0,91365.0,0.109451]
[1731737769474,0.0247144,91366.0,91365.0,0.14075542]
[1731737769689,0.0247144,91366.0,91365.0,0.26529812]
[1731737770845,0.0297144,91366.0,91365.0,0.2339937]
[1731737771484,0.0297144,91366.0,91365.0,0.27869775]
[1731737773713,0.0247144,91366.0,91365.0,0.27869775]
[1731737773924,0.0017144,91376.0,91375.0,0.109439]
[1731737774141,0.0017144,91376.0,91375.0,0.2339817]
[1731737774822,0.0017144,91376.0,91375.0,0.26528612]
[1731737775561,0.0017144,91376.0,91375.0,0.29444449]
[1731737776638,0.0017144,91376.0,91375.0,0.54444449]
[1731737777062,0.0017144,91376.0,91375.0,0.6984622]
[1731737778563,0.023,91397.0,91396.0,0.109413]
[1731737778950,0.023,91397.0,91396.0,0.14144969]
[1731737779152,0.023,91401.0,91399.0,0.218819]
[1731737779378,0.023,91401.0,91400.0,0.109409]
[1731737779815,0.006715,91402.0,91399.0,0.25085569]
[1731737780038,0.029715,91402.0,91401.0,0.109407]
[1731737780506,0.024715,91402.0,91401.0,0.109407]
[1731737780945,0.029715,91402.0,91401.0,0.109407]
[1731737782497,0.024715,91402.0,91401.0,0.109407]
[1731737782743,0.029715,91402.0,91401.0,0.109407]
[1731737784104,0.029715,91402.0,91401.0,0.15012585]
[1731737784318,0.001715,91402.0,91401.0,0.15012585]
[1731737784948,0.006715,91402.0,91401.0,0.15012585]
[1731737785407,0.029715,91402.0,91401.0,0.13167645]
[1731737785618,0.029715,91402.0,91401.0,0.109407]
[1731737786938,0.024715,91402.0,91401.0,0.1669199]
[1731737787174,0.029715,91402.0,91401.0,0.1669199]
[1731737788950,0.031715,91402.0,91401.0,0.1669199]
[1731737789165,0.029715,91402.0,91401.0,0.1669199]
[1731737789606,0.029715,91402.0,91401.0,0.109407]
[1731737792082,0.029715,91402.0,91401.0,0.1669199]
[1731737795452,0.029715,91402.0,91398.0,0.03848033]
[1731737795453,0.028,91399.0,91398.0,0.03848033]
[1731737795664,0.028,91399.0,91398.0,0.109411]
[1731737796385,0.03,91399.0,91398.0,0.109411]
[1731737796609,0.0829,91393.0,91392.0,0.109418]
[1731737797123,0.0809,91393.0,91392.0,0.109418]
[1731737797341,0.09971711,91393.0,91392.0,0.109418]
[1731737798751,0.1606,91393.0,91392.0,0.109418]
[1731737799001,0.21153658,91393.0,91392.0,0.109418]
[1731737800575,0.18142176,91393.0,91392.0,0.109418]
[1731737801693,0.01,91389.0,91380.0,0.218865]
[1731737801933,0.028,91384.0,91383.0,0.109429]
[1731737802594,0.007,91378.0,91377.0,0.109436]
[1731737802865,0.007,91378.0,91376.0,0.1102938]
[1731737802866,0.005,91377.0,91376.0,0.1102938]
[1731737803083,0.007,91377.0,91376.0,0.1102938]
[1731737803303,0.02584303,91377.0,91376.0,0.1102938]
[1731737803526,0.007,91377.0,91376.0,0.1102938]
[1731737804186,0.007,91377.0,91376.0,0.0008568]
[1731737804187,0.19186255,91377.0,91376.0,0.0008568]
[1731737804397,0.26976255,91377.0,91376.0,0.0008568]
[1731737804837,0.28860253,91377.0,91376.0,0.0008568]
[1731737805506,0.37919855,91377.0,91376.0,0.0008568]
[1731737805786,0.37719855,91377.0,91376.0,0.0008568]
[1731737806002,0.40303084,91377.0,91376.0,0.0008568]
[1731737806220,0.43315875,91377.0,91376.0,0.0008568]
[1731737806444,0.40303084,91377.0,91376.0,0.0008568]
[1731737807373,0.38419855,91377.0,91376.0,0.0008568]
[1731737808719,0.27476255,91377.0,91376.0,0.0008568]
[1731737808938,0.38419855,91377.0,91376.0,0.0008568]
[1731737812468,0.38919855,91377.0,91376.0,0.0008568]
[1731737812725,0.40799182,91377.0,91376.0,0.0008568]
[1731737812962,0.4079917,91377.0,91376.0,0.0008568]
[1731737813433,0.4079917,91377.0,91359.0,0.21873533]
[1731737813434,0.012,91360.0,91359.0,0.21873533]
[1731737813662,0.058,91360.0,91359.0,0.32819333]
[1731737814402,0.012,91350.0,91349.0,0.10947]
[1731737814860,0.01,91350.0,91349.0,0.10947]
[1731737815780,0.11906255,91350.0,91349.0,0.10947]
[1731737816216,0.01,91348.0,91347.0,0.109472]
[1731737816441,0.01885182,91348.0,91347.0,0.109472]
[1731737817120,0.01385182,91348.0,91347.0,0.2340147]
[1731737817578,0.005,91348.0,91347.0,0.2340147]
[1731737818730,0.005,91349.0,91348.0,0.109471]
[1731737818964,0.002,91358.0,91347.0,0.1245427]
[1731737819169,0.007,91358.0,91357.0,0.10946]
[1731737819389,0.012,91358.0,91357.0,0.10946]
[1731737819597,0.01580524,91358.0,91357.0,0.10946]
[1731737820055,0.02080524,91358.0,91357.0,0.10946]
[1731737820708,0.01380524,91358.0,91357.0,0.10946]
[1731737820919,0.01880524,91358.0,91357.0,0.10946]
[1731737821156,0.01,91358.0,91357.0,0.10946]
[1731737824203,0.012,91358.0,91357.0,0.10946]
[1731737831150,0.005,91351.0,91350.0,0.045311]
[1731737831630,0.012,91348.0,91347.0,0.0008568]
[1731737831840,0.012,91348.0,91347.0,0.1103288]
[1731737831841,0.11906255,91348.0,91347.0,0.1103288]
[1731737832053,0.12800819,91348.0,91347.0,0.1103288]
[1731737832304,0.13000819,91348.0,91347.0,0.0008568]
[1731737832578,0.26247919,91348.0,91347.0,0.0008568]
[1731737832792,0.23180819,91348.0,91347.0,0.0008568]
[1731737833885,0.22980819,91348.0,91347.0,0.0008568]
[1731737834095,0.22980819,91348.0,91347.0,0.1103288]
[1731737834322,0.23180819,91348.0,91347.0,0.1103288]
[1731737834531,0.22286255,91348.0,91347.0,0.1103288]
[1731737834746,0.22978479,91348.0,91347.0,0.1103288]
[1731737835621,0.23178479,91348.0,91347.0,0.1103288]
[1731737835835,0.12998479,91348.0,91347.0,0.1103288]
[1731737836045,0.12798479,91348.0,91347.0,0.1103288]
[1731737836495,0.12998479,91348.0,91347.0,0.1103288]
[1731737836722,0.12798479,91348.0,91347.0,0.1103288]
[1731737837164,0.12298479,91348.0,91347.0,0.1103288]
[1731737837381,0.12498479,91348.0,91347.0,0.1103288]
[1731737837658,0.12998479,91348.0,91347.0,0.1103288]
[1731737839888,0.17648479,91348.0,91347.0,0.0008568]
[1731737840118,0.39775579,91348.0,91347.0,0.0008568]
[1731737841494,0.01,91336.0,91335.0,0.04542913]
[1731737841707,0.12106255,91336.0,91335.0,0.15491613]
[1731737841941,0.12106255,91336.0,91335.0,0.109487]
[1731737842179,0.13219579,91336.0,91335.0,0.109487]
[1731737845186,0.13219579,91336.0,91335.0,0.110344]
[1731737850354,0.13219579,91336.0,91335.0,0.000857]
[1731737850569,0.28668079,91336.0,91335.0,0.000857]
[1731737850819,0.28868079,91336.0,91335.0,0.000857]
[1731737851475,0.36958079,91336.0,91335.0,0.000857]
[1731737852213,0.26009579,91336.0,91335.0,0.000857]
[1731737853542,0.40258079,91336.0,91335.0,0.000857]
[1731737853963,0.45146542,91336.0,91335.0,0.000857]
[1731737854170,0.45146123,91336.0,91335.0,0.000857]
[1731737854385,0.42138096,91336.0,91335.0,0.000857]
[1731737856089,0.45146123,91336.0,91335.0,0.000857]
[1731737856444,0.42138096,91336.0,91335.0,0.000857]
[1731737856654,0.45146123,91336.0,91335.0,0.000857]
[1731737856863,0.46137368,91336.0,91335.0,0.000857]
[1731737857328,0.46128763,91336.0,91335.0,0.000857]
[1731737857540,0.46128949,91336.0,91335.0,0.000857]
[1731737857657,0.40258079,91336.0,91335.0,0.000857]
[1731737857866,0.4193413,91336.0,91335.0,0.000857]
[1731737858084,0.44935813,91336.0,91335.0,0.000857]
[1731737858599,0.4193413,91336.0,91335.0,0.000857]
[1731737858802,0.56947541,91336.0,91335.0,0.000857]
[1731737858975,0.6094043,91336.0,91335.0,0.000857]
[1731737859196,0.121517,91310.0,91309.0,0.0008574]
[1731737859417,0.23057955,91310.0,91309.0,0.0008574]
[1731737859742,0.24154993,91310.0,91309.0,0.0008574]
[1731737861045,0.39909263,91310.0,91309.0,0.0008574]
[1731737861250,0.52499263,91310.0,91309.0,0.0008574]
[1731737861664,0.57033494,91310.0,91309.0,0.0008574]
[1731737861887,0.58905754,91310.0,91309.0,0.0008574]
[1731737862511,0.40044993,91310.0,91309.0,0.0008574]
[1731737866593,0.005,91286.0,91285.0,0.219094]
[1731737867221,0.005,91286.0,91285.0,0.328641]
[1731737868083,0.005,91286.0,91285.0,0.3294982]
[1731737870455,0.109529,91300.0,91285.0,0.3294982]
[1731737870456,0.005,91296.0,91285.0,0.0008572]
[1731737870555,0.10906255,91307.0,91294.0,0.082]
[1731737870556,0.005,91298.0,91294.0,0.082]
[1731737870762,0.005,91298.0,91297.0,0.109532]
[1731737870763,0.01,91298.0,91297.0,0.109532]
[1731737873438,0.012,91298.0,91297.0,0.109532]
[1731737873857,0.01,91287.0,91286.0,0.459435]
[1731737874061,0.012,91287.0,91286.0,0.45435657]
[1731737874280,0.012,91287.0,91286.0,0.23526657]
[1731737874505,0.012,91287.0,91286.0,0.15386657]
[1731737875765,0.012,91287.0,91286.0,0.109545]
[1731737876193,0.012,91287.0,91284.0,0.04564934]
[1731737876395,0.012,91286.0,91284.0,0.1104046]
[1731737877042,0.02468023,91286.0,91284.0,0.1104046]
[1731737877273,0.12106255,91286.0,91284.0,0.1104046]
[1731737877478,0.13374278,91286.0,91284.0,0.0008566]
[1731737878590,0.24328778,91286.0,91284.0,0.0008566]
[1731737878856,0.13374278,91286.0,91285.0,0.1104042]
[1731737879079,0.24328778,91286.0,91285.0,0.0008572]
[1731737879291,0.32168778,91286.0,91285.0,0.0008572]
[1731737879981,0.32668778,91286.0,91285.0,0.0008572]
[1731737880659,0.35468778,91286.0,91285.0,0.0008572]
[1731737884058,0.37344229,91286.0,91285.0,0.0008572]
[1731737884281,0.37343762,91286.0,91285.0,0.0008572]
[1731737884739,0.45333737,91286.0,91285.0,0.0008572]
[1731737885209,0.46618233,91286.0,91285.0,0.0008572]
[1731737885433,0.46818233,91286.0,91285.0,0.0008572]
[1731737887047,0.49816636,91286.0,91285.0,0.0008572]
[1731737887270,0.49816636,91286.0,91284.0,0.0008566]
[1731737887271,0.152547,91285.0,91284.0,0.00060227]
[1731737887484,0.31170955,91285.0,91284.0,0.00060227]
[1731737887691,0.37310381,91285.0,91284.0,0.00060227]
[1731737888155,0.34311978,91285.0,91284.0,0.00060227]
[1731737891461,0.54136248,91285.0,91284.0,0.00060227]
[1731737891861,0.54536248,91285.0,91284.0,0.00060227]
[1731737891977,0.54336248,91285.0,91284.0,0.00060227]
[1731737892175,0.41881978,91285.0,91284.0,0.00060227]
[1731737894367,0.40006994,91285.0,91284.0,0.00060227]
[1731737894588,0.41879182,91285.0,91284.0,0.00060227]
[1731737897864,0.42079182,91285.0,91284.0,0.00060227]
[1731737898277,0.42078747,91285.0,91284.0,0.00060227]
[1731737898940,0.42078783,91285.0,91284.0,0.00060227]
[1731737899182,0.41878783,91285.0,91284.0,0.00060227]
[1731737899635,0.44873646,91285.0,91284.0,0.00060227]
[1731737900046,0.55779901,91285.0,91284.0,0.00060227]
[1731737900250,0.56968394,91285.0,91284.0,0.00060227]
[1731737900669,0.46062139,91285.0,91284.0,0.00060227]
[1731737901512,0.55783474,91285.0,91284.0,0.00060227]
[1731737901775,0.56062139,91285.0,91284.0,0.00060227]
[1731737902205,1.10459642,91285.0,91284.0,0.00060227]
[1731737902416,0.283059,91275.0,91274.0,0.0008571]
[1731737902593,0.41083944,91275.0,91274.0,0.0008571]
[1731737902829,0.45292843,91275.0,91274.0,0.0008571]
[1731737903282,0.45292843,91275.0,91265.0,0.0008567]
[1731737903283,0.024,91266.0,91265.0,0.0008567]
[1731737903503,0.71132434,91266.0,91265.0,0.0008567]
[1731737903717,1.13139839,91266.0,91265.0,0.0008567]
[1731737903919,1.67059839,91266.0,91265.0,0.0008567]
[1731737904154,1.72915547,91266.0,91265.0,0.0008567]
[1731737904406,0.022,91244.0,91217.0,0.0008572]
[1731737904617,0.24065855,91244.0,91219.0,0.2201096]
[1731737904830,0.31120678,91244.0,91223.0,0.10962]
[1731737905058,0.30132616,91244.0,91219.0,0.2201096]
[1731737905273,0.30132616,91244.0,91219.0,0.0008576]
[1731737905996,0.31120678,91244.0,91219.0,0.1104826]
[1731737906218,0.30132616,91244.0,91219.0,0.1104826]
[1731737906444,0.30132616,91244.0,91219.0,0.0008576]
[1731737907129,0.30129543,91244.0,91219.0,0.0008576]
[1731737907330,0.30129543,91244.0,91219.0,0.1104826]
[1731737907568,0.30129543,91244.0,91219.0,0.0008576]
[1731737907798,0.30129543,91244.0,91231.0,0.0837575]
[1731737908231,0.25268463,91244.0,91231.0,0.0837575]
[1731737908436,0.27137365,91244.0,91231.0,0.0837575]
[1731737908649,0.16177765,91244.0,91231.0,0.0837575]
[1731737908869,0.27137365,91244.0,91237.0,0.109603]
[1731737909350,0.27137365,91244.0,91235.0,0.109606]
[1731737909603,0.27137365,91244.0,91237.0,0.109604]
[1731737910256,0.27137365,91244.0,91240.0,0.2192]
[1731737910257,0.13308863,91244.0,91240.0,0.2192]
[1731737910469,0.13108863,91244.0,91243.0,0.1104537]
[1731737910910,0.13308863,91244.0,91243.0,0.1104537]
[1731737912175,0.13308863,91244.0,91243.0,0.0008567]
[1731737912605,0.13308863,91244.0,91243.0,0.1104537]
[1731737913016,0.12106255,91244.0,91243.0,0.1104537]
[1731737913239,0.13096546,91244.0,91243.0,0.1104537]
[1731737914594,0.12596546,91244.0,91243.0,0.1104537]
[1731737914814,0.13096546,91244.0,91243.0,0.1104537]
[1731737915450,0.13296546,91244.0,91243.0,0.1104537]
[1731737915658,0.12796546,91244.0,91243.0,0.1104537]
[1731737915864,0.13296546,91244.0,91243.0,0.1104537]
[1731737916075,0.12796546,91244.0,91243.0,0.1104537]
[1731737916487,0.13296546,91244.0,91243.0,0.1104537]
[1731737916697,0.12796546,91244.0,91243.0,0.1104537]
[1731737917152,0.13296546,91244.0,91243.0,0.1104537]
[1731737917352,0.12796546,91244.0,91243.0,0.1104537]
[1731737917566,0.13296546,91244.0,91243.0,0.1104537]
[1731737917774,0.12796546,91244.0,91243.0,0.1104537]
[1731737917985,0.13296546,91244.0,91243.0,0.1104537]
[1731737921650,0.12596546,91244.0,91243.0,0.1104537]
[1731737922116,0.01190291,91244.0,91243.0,0.1921537]
[1731737922552,0.007,91255.0,91254.0,0.109584]
[1731737922780,0.005,91255.0,91254.0,0.3158267]
[1731737923006,0.01,91255.0,91254.0,0.3158267]
[1731737925489,0.0117148,91255.0,91254.0,0.3158267]
[1731737926189,0.0017148,91255.0,91254.0,0.3158267]
[1731737926425,0.0017148,91255.0,91254.0,0.36024292]
[1731737928062,0.0017148,91255.0,91254.0,0.55478562]
[1731737928831,0.0017148,91255.0,91254.0,0.43024292]
[1731737930940,0.0017148,91255.0,91254.0,0.55478562]
[1731737932096,0.0017148,91255.0,91254.0,0.43024292]
[1731737932629,0.16971661,91275.0,91254.0,0.43024292]
[1731737932630,0.16471661,91275.0,91263.0,0.25]
[1731737932863,0.16471661,91275.0,91274.0,0.3633027]
[1731737933312,0.17143201,91285.0,91284.0,0.109548]
[1731737933536,0.17143201,91285.0,91284.0,0.2340907]
[1731737933787,0.0017154,91285.0,91284.0,0.2340907]
[1731737934475,0.0067154,91285.0,91284.0,0.3166907]
[1731737935156,0.0017154,91285.0,91284.0,0.3166907]
[1731737937638,0.0017154,91285.0,91284.0,0.36152144]
[1731737938084,0.0017154,91285.0,91284.0,0.38319414]
[1731737940406,0.0017154,91285.0,91284.0,0.36152144]
[1731737940645,0.0067154,91285.0,91284.0,0.15437874]
[1731737941327,0.0087154,91285.0,91284.0,0.109548]
[1731737941571,0.0137154,91285.0,91284.0,0.109548]
[1731737942478,0.005,91272.0,91270.0,0.26376071]
[1731737942712,0.005,91272.0,91270.0,0.21913]
[1731737942713,0.005,91271.0,91270.0,0.21913]
[1731737942964,0.005,91271.0,91270.0,0.328695]
[1731737943413,0.007,91271.0,91270.0,0.328695]
[1731737944642,0.007,91271.0,91270.0,0.109565]
[1731737944643,0.12106255,91271.0,91270.0,0.109565]
[1731737945101,0.12601173,91271.0,91270.0,0.109565]
[1731737945348,0.012,91266.0,91265.0,0.109571]
[1731737946701,0.01,91266.0,91265.0,0.109571]
[1731737950525,0.012,91266.0,91265.0,0.109571]
[1731737951207,0.007,91262.0,91260.0,0.219152]
[1731737951444,0.01,91261.0,91260.0,0.328729]
[1731737951909,0.01492545,91261.0,91260.0,0.328729]
[1731737952114,0.01,91261.0,91260.0,0.328729]
[1731737952321,0.01492545,91261.0,91260.0,0.328729]
[1731737952737,0.01692545,91261.0,91260.0,0.328729]
[1731737953227,0.00492545,91261.0,91260.0,0.5778144]
[1731737953447,0.38377561,91300.0,91260.0,0.5778144]
[1731737953448,0.01,91289.0,91270.0,0.082]
[1731737953649,0.16471661,91277.0,91276.0,0.132557]
[1731737954059,0.16471661,91290.0,91284.0,0.109548]
[1731737954265,0.16471661,91290.0,91284.0,0.2340907]
[1731737955805,0.0067154,91288.0,91284.0,0.2340907]
[1731737956014,0.005,91286.0,91284.0,0.2340907]
[1731737957794,0.005,91286.0,91284.0,0.27924155]
[1731737959150,0.0017154,91288.0,91284.0,0.13474213]
[1731737959414,0.0017154,91288.0,91284.0,0.59128483]
[1731737960776,0.0017154,91288.0,91284.0,0.73882753]
[1731737960993,0.0017154,91288.0,91284.0,0.78572753]
[1731737962095,0.16471661,91300.0,91299.0,0.25]
[1731737962328,0.16471661,91300.0,91299.0,0.44153]
[1731737962782,0.16471661,91310.0,91309.0,0.109518]
[1731737963294,0.16971661,91320.0,91319.0,0.109506]
[1731737963518,0.28377916,91320.0,91319.0,0.109506]
[1731737963726,0.11406255,91320.0,91319.0,0.109506]
[1731737964149,0.005,91325.0,91319.0,0.1245427]
[1731737964361,0.005,91325.0,91324.0,0.1095]
[1731737964580,0.005,91329.0,91327.0,0.109496]
[1731737964800,0.16971661,91329.0,91328.0,0.2340377]
[1731737965010,0.005,91329.0,91328.0,0.2340377]
[1731737965937,0.0499,91345.0,91328.0,0.2340377]
[1731737965938,0.005,91331.0,91328.0,0.1245427]
[1731737966162,0.005,91331.0,91330.0,0.109493]
[1731737966409,0.0017144,91341.0,91340.0,0.109481]
[1731737966629,0.0017144,91341.0,91340.0,0.2340237]
[1731737966846,0.0017144,91341.0,91340.0,0.109481]
[1731737967081,0.0117144,91341.0,91340.0,0.109481]
[1731737967526,0.12077695,91341.0,91340.0,0.109481]
[1731737968626,0.11577695,91341.0,91340.0,0.109481]
[1731737968857,0.12077695,91341.0,91340.0,0.109481]
[1731737970685,0.12277695,91341.0,91340.0,0.109481]
[1731737971166,0.12077695,91341.0,91340.0,0.109481]
[1731737971381,0.0117144,91341.0,91340.0,0.2340237]
[1731737973637,0.0067144,91341.0,91340.0,0.2340237]
[1731737975839,0.00381785,91341.0,91340.0,0.2340237]
[1731737976074,0.00881785,91341.0,91340.0,0.2340237]
[1731737977643,0.00553345,91347.0,91342.0,0.218955]
[1731737977848,0.00553345,91347.0,91346.0,0.109473]
[1731737978504,0.0017156,91347.0,91346.0,0.109473]
[1731737983632,0.0017156,91347.0,91346.0,0.15356537]
[1731737984489,0.0017156,91347.0,91346.0,0.17656537]
[1731737996725,0.0017156,91347.0,91346.0,0.39956537]
[1731738003445,0.0017156,91347.0,91346.0,0.56639748]
[1731738004756,0.0017156,91347.0,91346.0,0.59894233]
[1731738005611,0.0017156,91347.0,91346.0,0.70800488]
[1731738005818,0.006714,91359.0,91358.0,0.2570017]
[1731738006578,0.006714,91359.0,91354.0,0.468926]
[1731738006950,0.001714,91359.0,91358.0,0.2340017]
[1731738007151,0.001714,91359.0,91358.0,0.24083642]
[1731738007285,0.001714,91359.0,91358.0,0.32113642]
[1731738008119,0.001714,91359.0,91358.0,0.3143017]
[1731738008579,0.001714,91359.0,91358.0,0.59600695]
[1731738008882,0.0017136,91377.0,91373.0,0.109441]
[1731738009089,0.0017136,91377.0,91373.0,0.2339837]
[1731738009310,0.0017136,91377.0,91376.0,0.109437]
[1731738009509,0.0017136,91377.0,91376.0,0.14984651]
[1731738010378,0.0017136,91377.0,91376.0,0.17284651]
[1731738010613,0.0017136,91377.0,91376.0,0.28190906]
[1731738010829,0.0017136,91377.0,91376.0,0.36220906]
[1731738011501,6e-07,91377.0,91376.0,0.36220906]
[1731738011709,6e-07,91377.0,91376.0,0.5093231]
[1731738011914,6e-07,91377.0,91376.0,0.36220906]
[1731738013004,0.16471661,91393.0,91379.0,0.25]
[1731738013205,8e-07,91380.0,91379.0,0.57109655]
[1731738013419,8e-07,91380.0,91379.0,0.61150606]
[1731738013772,0.16471661,91393.0,91389.0,0.462022]
[1731738013988,0.001715,91402.0,91392.0,0.023]
[1731738014222,0.001715,91402.0,91401.0,0.4839497]
[1731738014420,0.001715,91402.0,91401.0,0.52435921]
[1731738014623,0.001715,91402.0,91401.0,0.39981651]
[1731738014836,0.001715,91402.0,91401.0,0.52435921]
[1731738015046,0.1657632,91412.0,91411.0,0.109396]
[1731738015461,0.01013761,91412.0,91411.0,0.109396]
[1731738015705,0.16471661,91421.0,91420.0,0.109385]
[1731738016089,0.00515467,91421.0,91420.0,0.109385]
[1731738016495,0.01015467,91421.0,91420.0,0.15433995]
[1731738016989,0.005,91421.0,91420.0,0.15433995]
[1731738018098,0.005,91412.0,91406.0,0.218802]
[1731738018322,0.005,91412.0,91409.0,0.218795]
[1731738018773,0.005,91412.0,91411.0,0.109396]
[1731738020878,0.01,91412.0,91411.0,0.109396]
[1731738021091,0.005,91404.0,91403.0,0.109405]
[1731738021996,0.11906255,91404.0,91403.0,0.109405]
[1731738022217,0.005,91404.0,91403.0,0.109405]
[1731738022696,0.005,91404.0,91402.0,0.218813]
[1731738022922,0.005,91404.0,91403.0,0.109405]
[1731738023815,0.01044412,91404.0,91403.0,0.109405]
[1731738024059,0.005,91404.0,91403.0,0.109405]
[1731738025787,0.01044412,91404.0,91403.0,0.109405]
[1731738026001,0.005,91404.0,91403.0,0.109405]
[1731738026217,0.01044412,91404.0,91403.0,0.109405]
[1731738026466,0.005,91404.0,91403.0,0.109405]
[1731738026675,0.01044412,91404.0,91403.0,0.109405]
[1731738026882,0.005,91404.0,91403.0,0.109405]
[1731738027089,0.01044412,91404.0,91403.0,0.109405]
[1731738027299,0.005,91404.0,91403.0,0.109405]
[1731738027539,0.01044412,91404.0,91403.0,0.109405]
[1731738027803,0.005,91404.0,91403.0,0.109405]
[1731738028015,0.00995628,91404.0,91403.0,0.109405]
[1731738028232,0.005,91393.0,91388.0,0.218847]
[1731738028459,0.005,91388.0,91387.0,0.109424]
[1731738030024,0.11106255,91403.0,91402.0,0.1652]
[1731738030233,0.11106255,91403.0,91402.0,0.274606]
[1731738030466,0.11600394,91403.0,91402.0,0.274606]
[1731738030689,0.11106255,91403.0,91402.0,0.274606]
[1731738030897,0.11600373,91403.0,91402.0,0.274606]
[1731738031752,0.11815381,91403.0,91402.0,0.274606]
[1731738031972,0.11615381,91403.0,91402.0,0.274606]
[1731738032185,0.11815381,91403.0,91402.0,0.274606]
[1731738032386,0.11815381,91403.0,91402.0,0.1652]
[1731738032820,0.11815381,91403.0,91402.0,0.274606]
[1731738033055,0.16036255,91403.0,91402.0,0.274606]
[1731738033483,0.16892238,91403.0,91402.0,0.274606]
[1731738035661,0.16692238,91403.0,91402.0,0.274606]
[1731738036313,0.00855983,91403.0,91402.0,0.274606]
[1731738036835,0.16471661,91419.0,91418.0,0.109387]
[1731738037060,0.28236484,91419.0,91418.0,0.109387]
[1731738037466,0.11764823,91419.0,91418.0,0.109387]
[1731738038332,0.00858568,91419.0,91418.0,0.109387]
[1731738038765,0.0807118,91421.0,91420.0,0.109385]
[1731738038967,0.18977435,91421.0,91420.0,0.109385]
[1731738039421,0.19836276,91421.0,91420.0,0.109385]
[1731738040489,0.11936276,91421.0,91420.0,0.109385]
[1731738040939,0.11077435,91421.0,91420.0,0.109385]
[1731738042850,0.11277435,91421.0,91420.0,0.109385]
[1731738043338,0.11277435,91421.0,91416.0,0.218778]
[1731738043553,0.002,91419.0,91418.0,0.109387]